fUST/lending_fUST_20250925
["ID","MTS","AMOUNT","RATE_DAILY","PERIOD"]
[387644947,1758795602081,-159.92957211,0.00019245,2]
[387644948,1758795602104,-51.44330173,0.00019273,2]
[387644949,1758795606235,-267.21883519,0.00019273,2]
[387645002,1758795796454,217.46353265,0.00018763,2]
[387645004,1758796052131,-266.86771847,0.00019249,2]
[387645005,1758796052154,-2806.61790138,0.00019252,2]
[387645006,1758796052178,-500.0,0.000193,2]
[387645007,1758796052214,-244.96,0.00019336,3]
[387645008,1758796052238,-1200.0,0.00019336,2]
[387645009,1758796052263,-395.77490986,0.00019337,3]
[387645014,1758796071658,28825.9214382,0.00018,2]
[387645019,1758796115360,65160.9022931,0.00017,2]
[387645021,1758796125521,15283.91625208,0.0001,2]
[387645022,1758796148090,-159.92957211,0.00019243,2]
[387645023,1758796148110,-213.4941748,0.00019246,2]
[387645024,1758796148130,-1871.07860092,0.00019249,2]
[387645025,1758796148151,-162.90509014,0.00019337,3]
[387645026,1758796148170,-92.00477479,0.00019337,3]
[387645027,1758796206673,185.229449,0.00018343,2]
[387645028,1758796219276,873.9107604,0.0001849,2]
[387645043,1758796231844,-187.33522521,0.00019337,3]
[387645044,1758796231854,-838.04,0.00019337,3]
[387645045,1758796231863,-209.13429554,0.0001934,2]
[387645046,1758796231875,-77.86570446,0.0001934,2]
[387645047,1758796231884,-300.0,0.0001934,2]
[387645049,1758796231893,-165.6763876,0.00019341,2]
[387645050,1758796231902,-174.41803951,0.00019341,2]
[387645052,1758796231912,-208.93229019,0.00019341,2]
[387645055,1758796231921,-500.0,0.00019341,2]
[387645057,1758796231931,-500.0,0.00019341,2]
[387645059,1758796231940,-500.0,0.00019341,2]
[387645061,1758796231949,-500.0,0.00019341,2]
[387645062,1758796231959,-500.0,0.00019341,2]
[387645063,1758796231969,-500.0,0.00019341,2]
[387645064,1758796231979,-500.0,0.00019341,2]
[387645065,1758796231988,-249.17341856,0.00019341,2]
[387645066,1758796231998,-322.11369077,0.00019341,2]
[387645067,1758796232008,-500.0,0.00019341,2]
[387645068,1758796232017,-500.0,0.00019341,2]
[387645069,1758796232027,-500.0,0.00019341,2]
[387645070,1758796232037,-500.0,0.00019341,2]
[387645071,1758796232046,-500.0,0.00019341,2]
[387645072,1758796232055,-500.0,0.00019341,2]
[387645073,1758796232065,-500.0,0.00019341,2]
[387645074,1758796232074,-500.0,0.00019341,2]
[387645075,1758796232084,-458.7872527,0.00019341,2]
[387645076,1758796232096,-41.2127473,0.00019341,2]
[387645077,1758796232113,-500.0,0.00019341,2]
[387645078,1758796232122,-500.0,0.00019341,2]
[387645079,1758796232131,-500.0,0.00019341,2]
[387645080,1758796232140,-500.0,0.00019341,2]
[387645081,1758796232149,-332.4872528,0.00019341,2]
[387645082,1758796232176,-167.5127472,0.00019341,2]
[387645083,1758796232185,-87.14484594,0.00019341,2]
[387645084,1758796232196,-412.85515406,0.00019341,2]
[387645086,1758796232205,-500.0,0.00019341,2]
[387645087,1758796232310,-3346.96339503,0.00019342,2]
[387645088,1758796232332,-2577.99281836,0.00019342,2]
[387645089,1758796232343,-25563.70971479,0.00019342,2]
[387645090,1758796232354,-18511.33407182,0.00019342,2]
[387645091,1758796232362,-481.96123196,0.00019343,2]
[387645092,1758796232371,-480.0,0.00019343,2]
[387645093,1758796232380,-481.15452325,0.00019343,2]
[387645094,1758796232389,-480.0,0.00019343,2]
[387645095,1758796232398,-480.0,0.00019343,2]
[387645096,1758796232407,-480.0,0.00019343,2]
[387645097,1758796232417,-480.0,0.00019343,2]
[387645098,1758796232426,-480.0,0.00019343,2]
[387645099,1758796232435,-480.0,0.00019343,2]
[387645100,1758796232445,-480.0,0.00019343,2]
[387645101,1758796232455,-480.0,0.00019343,2]
[387645102,1758796232464,-513.38272893,0.00019343,2]
[387645103,1758796232475,-480.0,0.00019343,2]
[387645104,1758796232485,-481.94312747,0.00019343,2]
[387645105,1758796232495,-480.0,0.00019343,2]
[387645106,1758796232505,-480.0,0.00019343,2]
[387645107,1758796232515,-480.0,0.00019343,2]
[387645108,1758796232524,-480.0,0.00019343,2]
[387645109,1758796232533,-480.0,0.00019343,2]
[387645110,1758796232543,-480.0,0.00019343,2]
[387645111,1758796232552,-480.0,0.00019343,2]
[387645112,1758796232562,-480.0,0.00019343,2]
[387645113,1758796232571,-480.0,0.00019343,2]
[387645114,1758796232581,-480.0,0.00019343,2]
[387645115,1758796232591,-480.0,0.00019343,2]
[387645116,1758796232600,-480.0,0.00019343,2]
[387645117,1758796232610,-485.96504322,0.00019343,2]
[387645118,1758796232621,-417.97439157,0.00019343,2]
[387645119,1758796232630,-480.0,0.00019343,2]
[387645120,1758796232639,-480.0,0.00019343,2]
[387645121,1758796232649,-480.0,0.00019343,2]
[387645122,1758796232659,-480.0,0.00019343,2]
[387645123,1758796232669,-480.0,0.00019343,2]
[387645124,1758796232679,-482.0099573,0.00019343,2]
[387645125,1758796232689,-255.80994389,0.00019343,2]
[387645126,1758796232698,-282.01309283,0.00019343,2]
[387645150,1758796237704,-197.98690717,0.00019343,2]
[387645151,1758796237714,-480.0,0.00019343,2]
[387645152,1758796237725,-488.36516026,0.00019343,2]
[387645153,1758796237735,-480.0,0.00019343,2]
[387645154,1758796237744,-480.0,0.00019343,2]
[387645155,1758796237754,-480.0,0.00019343,2]
[387645156,1758796237763,-480.0,0.00019343,2]
[387645157,1758796237773,-493.01169725,0.00019343,2]
[387645158,1758796237783,-598.54943446,0.00019343,2]
[387645159,1758796237791,-480.0,0.00019343,2]
[387645160,1758796237800,-480.0,0.00019343,2]
[387645161,1758796237809,-480.0,0.00019343,2]
[387645162,1758796237817,-480.0,0.00019343,2]
[387645164,1758796237827,-480.0,0.00019343,2]
[387645166,1758796237836,-486.64863469,0.00019343,2]
[387645168,1758796237845,-480.0,0.00019343,2]
[387645169,1758796237855,-480.0,0.00019343,2]
[387645171,1758796237864,-480.0,0.00019343,2]
[387645172,1758796237873,-429.26006638,0.00019343,2]
[387645173,1758796237881,-443.09305217,0.00019343,2]
[387645174,1758796237893,-36.90694783,0.00019343,2]
[387645175,1758796237903,-348.28470532,0.00019343,2]
[387645176,1758796237916,-131.71529468,0.00019343,2]
[387645177,1758796237927,-136.90392354,0.00019343,2]
[387645178,1758796237938,-359.6023294,0.00019343,2]
[387645179,1758796237948,-480.0,0.00019343,2]
[387645180,1758796237957,-122.1576702,0.00019344,2]
[387645181,1758796237969,-357.8423298,0.00019344,2]
[387645182,1758796237980,-480.0,0.00019344,2]
[387645183,1758796237990,-500.0,0.00019344,2]
[387645184,1758796237999,-500.0,0.00019344,2]
[387645185,1758796238008,-500.0,0.00019344,2]
[387645186,1758796238018,-459.58504763,0.00019344,2]
[387645187,1758796238028,-500.0,0.00019344,2]
[387645188,1758796238037,-500.0,0.00019344,2]
[387645189,1758796238047,-355.54732994,0.00019344,2]
[387645190,1758796238058,-500.0,0.00019344,2]
[387645191,1758796238068,-500.0,0.00019344,2]
[387645192,1758796238078,-500.0,0.00019344,2]
[387645193,1758796238088,-500.0,0.00019344,2]
[387645194,1758796238098,-500.0,0.00019344,2]
[387645195,1758796238107,-500.0,0.00019344,2]
[387645196,1758796238117,-500.0,0.00019344,2]
[387645197,1758796238126,-500.0,0.00019344,2]
[387645198,1758796238135,-500.0,0.00019344,2]
[387645199,1758796238144,-500.0,0.00019344,2]
[387645200,1758796238153,-400.0,0.00019344,2]
[387645201,1758796238163,-480.0,0.00019345,2]
[387645202,1758796238172,-480.0,0.00019345,2]
[387645203,1758796238181,-481.31298721,0.00019345,2]
[387645204,1758796238190,-480.0,0.00019345,2]
[387645205,1758796238199,-486.2176653,0.00019345,2]
[387645206,1758796238209,-480.0,0.00019345,2]
[387645207,1758796238218,-537.67637915,0.00019345,2]
[387645208,1758796238229,-480.0,0.00019345,2]
[387645209,1758796238238,-480.0,0.00019345,2]
[387645210,1758796238247,-480.0,0.00019345,2]
[387645211,1758796238257,-480.70854724,0.00019345,2]
[387645212,1758796238267,-480.0,0.00019345,2]
[387645213,1758796238276,-480.0,0.00019345,2]
[387645214,1758796238288,-480.0,0.00019345,2]
[387645215,1758796238298,-317.47761699,0.00019345,2]
[387645216,1758796238307,-480.0,0.00019345,2]
[387645217,1758796238317,-480.0,0.00019345,2]
[387645218,1758796238327,-480.0,0.00019345,2]
[387645219,1758796238336,-480.0,0.00019345,2]
[387645220,1758796238345,-481.50157464,0.00019345,2]
[387645221,1758796238355,-481.73781481,0.00019345,2]
[387645222,1758796238366,-480.0,0.00019345,2]
[387645223,1758796238376,-480.0,0.00019345,2]
[387645224,1758796238386,-506.53731676,0.00019345,2]
[387645225,1758796238395,-480.0,0.00019345,2]
[387645226,1758796238405,-500.0,0.00019345,2]
[387645227,1758796238414,-480.0,0.00019345,2]
[387645228,1758796238423,-480.0,0.00019345,2]
[387645229,1758796238433,-480.0,0.00019345,2]
[387645230,1758796238442,-360.6784953,0.00019345,2]
[387645231,1758796238452,-467.29864486,0.00019345,2]
[387645232,1758796238462,-480.0,0.00019345,2]
[387645233,1758796238471,-480.0,0.00019345,2]
[387645234,1758796238481,-480.0,0.00019345,2]
[387645235,1758796238491,-480.0,0.00019345,2]
[387645236,1758796238501,-481.25654967,0.00019345,2]
[387645237,1758796238511,-480.0,0.00019345,2]
[387645238,1758796238521,-480.0,0.00019345,2]
[387645239,1758796238530,-480.0,0.00019345,2]
[387645240,1758796238540,-433.74501388,0.00019345,2]
[387645241,1758796238549,-480.0,0.00019345,2]
[387645242,1758796238560,-480.0,0.00019345,2]
[387645243,1758796238570,-480.0,0.00019345,2]
[387645244,1758796238579,-480.0,0.00019345,2]
[387645245,1758796238588,-480.0,0.00019345,2]
[387645246,1758796238597,-480.0,0.00019345,2]
[387645247,1758796238606,-480.0,0.00019345,2]
[387645248,1758796238615,-480.0,0.00019345,2]
[387645249,1758796238625,-480.0,0.00019345,2]
[387645250,1758796238634,-480.0,0.00019345,2]
[387645251,1758796238643,-480.0,0.00019345,2]
[387645252,1758796238653,-487.37014948,0.00019345,2]
[387645253,1758796238663,-486.53041906,0.00019345,2]
[387645254,1758796238672,-480.0,0.00019345,2]
[387645255,1758796238681,-480.0,0.00019345,2]
[387645256,1758796238690,-171.93597487,0.00019345,2]
[387645257,1758796238699,-480.0,0.00019345,2]
[387645258,1758796238708,-480.0,0.00019345,2]
[387645259,1758796238717,-480.0,0.00019345,2]
[387645260,1758796238729,-480.0,0.00019345,2]
[387645261,1758796238738,-485.39691616,0.00019345,2]
[387645262,1758796238748,-480.0,0.00019345,2]
[387645263,1758796238757,-480.0,0.00019345,2]
[387645264,1758796238767,-480.0,0.00019345,2]
[387645265,1758796238776,-480.0,0.00019345,2]
[387645266,1758796238786,-480.0,0.00019345,2]
[387645267,1758796238795,-480.0,0.00019345,2]
[387645268,1758796238805,-480.0,0.00019345,2]
[387645269,1758796238814,-480.0,0.00019345,2]
[387645270,1758796238904,-481.80623496,0.00019345,2]
[387645271,1758796238915,-417.75080582,0.00019345,2]
[387645272,1758796238924,-480.0,0.00019345,2]
[387645273,1758796238934,-480.0,0.00019345,2]
[387645274,1758796238943,-480.0,0.00019345,2]
[387645275,1758796238953,-480.0,0.00019345,2]
[387645276,1758796238962,-480.0,0.00019345,2]
[387645277,1758796238972,-480.0,0.00019345,2]
[387645278,1758796238982,-480.0,0.00019345,2]
[387645279,1758796238991,-480.0,0.00019345,2]
[387645280,1758796239000,-480.0,0.00019345,2]
[387645281,1758796239010,-480.0,0.00019345,2]
[387645282,1758796239019,-480.0,0.00019345,2]
[387645283,1758796239029,-480.0,0.00019345,2]
[387645284,1758796239038,-481.54225201,0.00019345,2]
[387645285,1758796239048,-480.0,0.00019345,2]
[387645286,1758796239057,-480.0,0.00019345,2]
[387645287,1758796239067,-350.67457774,0.00019345,2]
[387645288,1758796239077,-480.0,0.00019345,2]
[387645289,1758796239090,-480.0,0.00019345,2]
[387645290,1758796239100,-480.0,0.00019345,2]
[387645291,1758796239110,-480.0,0.00019345,2]
[387645292,1758796239120,-480.0,0.00019345,2]
[387645293,1758796239130,-480.0,0.00019345,2]
[387645294,1758796239140,-480.0,0.00019345,2]
[387645295,1758796239149,-483.65872855,0.00019345,2]
[387645296,1758796239159,-480.0,0.00019345,2]
[387645297,1758796239168,-480.0,0.00019345,2]
[387645299,1758796239178,-480.0,0.00019345,2]
[387645300,1758796239187,-461.57291672,0.00019345,2]
[387645301,1758796239197,-480.0,0.00019345,2]
[387645302,1758796239207,-467.37947719,0.00019345,2]
[387645303,1758796239216,-549.11316961,0.00019345,2]
[387645304,1758796239229,-480.0,0.00019345,2]
[387645305,1758796239239,-480.0,0.00019345,2]
[387645306,1758796239255,-480.0,0.00019345,2]
[387645307,1758796239267,-482.37964265,0.00019345,2]
[387645308,1758796239277,-482.76289798,0.00019345,2]
[387645310,1758796239291,-481.5007264,0.00019345,2]
[387645311,1758796239301,-480.81926706,0.00019345,2]
[387645312,1758796239311,-481.7152655,0.00019345,2]
[387645313,1758796239321,-480.0,0.00019345,2]
[387645314,1758796239331,-480.0,0.00019345,2]
[387645315,1758796239340,-500.0,0.00019345,2]
[387645317,1758796239350,-480.0,0.00019345,2]
[387645318,1758796239359,-480.0,0.00019345,2]
[387645319,1758796239369,-437.59142433,0.00019345,2]
[387645320,1758796239378,-480.0,0.00019345,2]
[387645321,1758796239388,-481.89372087,0.00019345,2]
[387645322,1758796239398,-480.0,0.00019345,2]
[387645323,1758796239407,-480.0,0.00019345,2]
[387645324,1758796239417,-480.0,0.00019345,2]
[387645325,1758796239427,-481.34318913,0.00019345,2]
[387645326,1758796239436,-486.4791642,0.00019345,7]
[387645327,1758796239446,-480.0,0.00019345,2]
[387645328,1758796239456,-480.0,0.00019345,2]
[387645329,1758796239465,-481.89811442,0.00019345,2]
[387645330,1758796239477,-480.0,0.00019345,2]
[387645331,1758796239487,-480.0,0.00019345,2]
[387645332,1758796239498,-480.0,0.00019345,2]
[387645333,1758796239508,-480.0,0.00019345,2]
[387645334,1758796239518,-480.0,0.00019345,2]
[387645335,1758796239527,-480.0,0.00019345,2]
[387645336,1758796239537,-480.0,0.00019345,2]
[387645337,1758796239547,-480.0,0.00019345,2]
[387645338,1758796239557,-286.2542386,0.00019346,2]
[387645339,1758796239567,-480.0,0.00019346,2]
[387645340,1758796239576,-404.42932173,0.00019346,2]
[387645341,1758796239586,-480.0,0.00019346,2]
[387645342,1758796239595,-480.0,0.00019346,2]
[387645343,1758796239605,-480.0,0.00019346,2]
[387645344,1758796239615,-481.53768456,0.00019346,2]
[387645345,1758796239624,-480.0,0.00019346,2]
[387645346,1758796239633,-480.0,0.00019346,2]
[387645347,1758796239642,-480.0,0.00019346,2]
[387645348,1758796239651,-505.72866044,0.00019346,2]
[387645349,1758796239659,-480.0,0.00019346,2]
[387645350,1758796239668,-566.05504292,0.00019346,2]
[387645351,1758796239678,-480.0,0.00019346,2]
[387645352,1758796239687,-480.0,0.00019346,2]
[387645353,1758796239696,-480.0,0.00019346,2]
[387645354,1758796239705,-600.23467896,0.00019346,2]
[387645355,1758796239714,-480.0,0.00019346,2]
[387645356,1758796239724,-489.99445424,0.00019346,2]
[387645357,1758796239733,-480.0,0.00019346,2]
[387645358,1758796239742,-480.0,0.00019346,2]
[387645359,1758796239751,-480.0,0.00019346,2]
[387645360,1758796239760,-480.0,0.00019346,2]
[387645361,1758796239770,-486.08653928,0.00019346,2]
[387645362,1758796239779,-480.0,0.00019346,2]
[387645363,1758796239788,-480.0,0.00019346,2]
[387645364,1758796239798,-480.0,0.00019346,2]
[387645365,1758796239807,-480.0,0.00019346,2]
[387645366,1758796239816,-480.0,0.00019346,2]
[387645367,1758796239825,-480.0,0.00019346,2]
[387645368,1758796239834,-480.0,0.00019346,2]
[387645369,1758796239843,-480.0,0.00019346,2]
[387645370,1758796239852,-480.0,0.00019346,2]
[387645372,1758796239862,-587.90445896,0.00019346,2]
[387645374,1758796239871,-484.93624354,0.00019346,2]
[387645375,1758796239880,-480.0,0.00019346,2]
[387645376,1758796239889,-480.0,0.00019346,2]
[387645377,1758796239898,-480.0,0.00019346,2]
[387645378,1758796239907,-480.0,0.00019346,2]
[387645379,1758796239917,-480.0,0.00019346,2]
[387645380,1758796239926,-444.06630095,0.00019346,2]
[387645381,1758796239936,-480.0,0.00019346,2]
[387645382,1758796239946,-480.0,0.00019346,2]
[387645383,1758796239955,-484.84317112,0.00019346,2]
[387645384,1758796239965,-480.0,0.00019346,2]
[387645385,1758796239977,-397.28276152,0.00019346,2]
[387645386,1758796239986,-480.0,0.00019346,2]
[387645387,1758796239997,-497.54304207,0.00019346,2]
[387645388,1758796240007,-301.57932254,0.00019346,2]
[387645389,1758796240016,-518.60200489,0.00019346,2]
[387645390,1758796240025,-617.9764268,0.00019346,2]
[387645391,1758796240034,-480.0,0.00019346,2]
[387645392,1758796240044,-480.0,0.00019346,2]
[387645393,1758796240054,-480.0,0.00019346,2]
[387645394,1758796240063,-482.29381316,0.00019346,2]
[387645395,1758796240073,-480.0,0.00019346,2]
[387645396,1758796240082,-480.0,0.00019346,2]
[387645397,1758796240091,-484.26902332,0.00019346,2]
[387645398,1758796240101,-512.72527048,0.00019346,2]
[387645399,1758796240111,-480.0,0.00019346,2]
[387645400,1758796240121,-480.0,0.00019346,2]
[387645401,1758796240130,-592.68982552,0.00019346,2]
[387645402,1758796240140,-480.0,0.00019346,2]
[387645403,1758796240150,-344.66337903,0.00019346,2]
[387645404,1758796240159,-480.0,0.00019346,2]
[387645405,1758796240168,-300.29331099,0.00019346,2]
[387645406,1758796240177,-480.0,0.00019346,2]
[387645407,1758796240187,-495.78630157,0.00019346,2]
[387645408,1758796240197,-492.87321901,0.00019346,2]
[387645409,1758796240206,-480.0,0.00019346,2]
[387645410,1758796240215,-480.0,0.00019346,2]
[387645411,1758796240227,-481.93788751,0.00019346,2]
[387645412,1758796240237,-480.0,0.00019346,2]
[387645413,1758796240247,-482.68872355,0.00019346,2]
[387645414,1758796240256,-493.73849876,0.00019346,2]
[387645415,1758796240266,-488.54048086,0.00019346,2]
[387645416,1758796240275,-480.0,0.00019346,2]
[387645417,1758796240287,-480.0,0.00019346,2]
[387645418,1758796240296,-489.99665952,0.00019346,2]
[387645419,1758796240306,-480.0,0.00019346,2]
[387645420,1758796240315,-480.0,0.00019346,2]
[387645421,1758796240325,-488.9233092,0.00019346,2]
[387645422,1758796240335,-484.27050343,0.00019346,2]
[387645423,1758796240346,-480.0,0.00019346,2]
[387645424,1758796240356,-480.0,0.00019346,2]
[387645425,1758796240366,-485.44816988,0.00019346,2]
[387645426,1758796240376,-480.0,0.00019346,2]
[387645427,1758796240386,-481.63404145,0.00019346,2]
[387645428,1758796240395,-488.81223189,0.00019346,2]
[387645429,1758796240405,-480.0,0.00019346,2]
[387645430,1758796240414,-480.0,0.00019346,2]
[387645431,1758796240423,-480.0,0.00019346,2]
[387645432,1758796240433,-481.29753171,0.00019346,2]
[387645433,1758796240442,-480.0,0.00019346,2]
[387645434,1758796240451,-432.97042298,0.00019346,2]
[387645435,1758796240460,-500.0,0.00019346,2]
[387645436,1758796240470,-500.0,0.00019346,2]
[387645437,1758796240480,-187.93557331,0.00019346,2]
[387645438,1758796240490,-480.0,0.00019346,2]
[387645439,1758796240499,-480.0,0.00019346,2]
[387645440,1758796240508,-500.0,0.00019346,2]
[387645441,1758796240517,-500.0,0.00019346,2]
[387645442,1758796240527,-458.91843049,0.00019346,2]
[387645443,1758796240537,-480.0,0.00019346,2]
[387645444,1758796240546,-1000.0,0.00019346,2]
[387645445,1758796240556,-480.51001275,0.00019346,2]
[387645446,1758796240565,-480.0,0.00019346,2]
[387645447,1758796240575,-480.0,0.00019346,2]
[387645448,1758796240585,-480.0,0.00019346,2]
[387645449,1758796240594,-481.15595294,0.00019346,2]
[387645450,1758796240604,-480.0,0.00019346,2]
[387645451,1758796240613,-480.0,0.00019346,2]
[387645452,1758796240622,-480.0,0.00019346,2]
[387645453,1758796240632,-480.0,0.00019346,2]
[387645454,1758796240641,-480.0,0.00019346,2]
[387645455,1758796240653,-482.71381988,0.00019346,2]
[387645456,1758796240662,-480.0,0.00019346,2]
[387645457,1758796240672,-482.44252377,0.00019346,2]
[387645458,1758796240682,-480.0,0.00019346,2]
[387645459,1758796240692,-438.16704669,0.00019346,2]
[387645460,1758796240702,-480.0,0.00019346,2]
[387645461,1758796240711,-480.0,0.00019346,2]
[387645462,1758796240721,-508.82899998,0.00019346,2]
[387645463,1758796240801,-480.0,0.00019346,2]
[387645464,1758796240811,-468.93907949,0.00019346,2]
[387645465,1758796240820,-480.0,0.00019346,2]
[387645466,1758796240830,-517.130634,0.00019346,2]
[387645467,1758796240839,-484.40681743,0.00019346,2]
[387645468,1758796240848,-480.0,0.00019346,2]
[387645469,1758796240858,-480.0,0.00019346,2]
[387645470,1758796240867,-452.75119257,0.00019346,2]
[387645471,1758796240876,-480.0,0.00019346,2]
[387645472,1758796240885,-482.54017658,0.00019346,2]
[387645473,1758796240895,-480.0,0.00019346,2]
[387645474,1758796240906,-542.14916809,0.00019346,2]
[387645475,1758796240915,-480.0,0.00019346,2]
[387645476,1758796240925,-480.0,0.00019346,2]
[387645477,1758796240935,-480.0,0.00019346,2]
[387645478,1758796240944,-480.0,0.00019346,2]
[387645479,1758796240954,-603.51193949,0.00019346,2]
[387645480,1758796240963,-480.0,0.00019346,2]
[387645481,1758796240974,-485.07089591,0.00019346,2]
[387645482,1758796240983,-480.0,0.00019346,2]
[387645483,1758796240993,-480.0,0.00019346,2]
[387645484,1758796241004,-480.0,0.00019346,2]
[387645485,1758796241014,-481.29508615,0.00019346,2]
[387645486,1758796241024,-480.0,0.00019346,2]
[387645487,1758796241034,-480.0,0.00019346,2]
[387645488,1758796241044,-482.47018687,0.00019346,2]
[387645489,1758796241054,-496.80224384,0.00019346,2]
[387645490,1758796241063,-480.0,0.00019346,2]
[387645491,1758796241073,-485.27066079,0.00019346,2]
[387645492,1758796241084,-485.92541287,0.00019346,2]
[387645493,1758796241093,-480.0,0.00019346,2]
[387645494,1758796241103,-484.37245727,0.00019346,2]
[387645495,1758796241112,-480.0,0.00019346,2]
[387645496,1758796241122,-484.69969827,0.00019346,2]
[387645497,1758796241132,-484.73907712,0.00019346,2]
[387645498,1758796241141,-487.77480633,0.00019346,2]
[387645499,1758796241151,-998.22140236,0.00019346,2]
[387645500,1758796241160,-482.60587553,0.00019346,2]
[387645501,1758796241170,-480.0,0.00019346,2]
[387645502,1758796241180,-480.0,0.00019346,2]
[387645503,1758796241190,-480.0,0.00019346,2]
[387645504,1758796241199,-480.0,0.00019346,2]
[387645505,1758796241208,-500.0,0.00019346,2]
[387645506,1758796241219,-502.14438496,0.00019346,2]
[387645507,1758796241230,-480.0,0.00019346,2]
[387645508,1758796241239,-513.22,0.00019346,2]
[387645509,1758796241248,-513.22,0.00019346,2]
[387645510,1758796241258,-513.22,0.00019346,2]
[387645511,1758796241267,-513.22,0.00019346,2]
[387645512,1758796241278,-403.48553316,0.00019346,2]
[387645513,1758796241290,-480.0,0.00019346,2]
[387645514,1758796241299,-480.0,0.00019346,2]
[387645515,1758796241309,-510.02642384,0.00019346,2]
[387645516,1758796241318,-480.0,0.00019346,2]
[387645517,1758796241327,-500.0,0.00019346,2]
[387645518,1758796241337,-495.01321192,0.00019346,2]
[387645519,1758796241347,-480.0,0.00019346,2]
[387645520,1758796241357,-480.0,0.00019346,2]
[387645521,1758796241366,-512.39797834,0.00019346,2]
[387645522,1758796241376,-480.0,0.00019346,2]
[387645523,1758796241385,-480.0,0.00019346,2]
[387645524,1758796241395,-386.5074979,0.00019346,2]
[387645525,1758796241404,-480.0,0.00019346,2]
[387645526,1758796241413,-480.0,0.00019346,2]
[387645527,1758796241423,-524.78783202,0.00019346,2]
[387645528,1758796241432,-480.0,0.00019346,2]
[387645529,1758796241442,-480.0,0.00019346,2]
[387645530,1758796241452,-480.0,0.00019346,2]
[387645531,1758796241462,-480.0,0.00019346,2]
[387645532,1758796241472,-480.0,0.00019346,2]
[387645533,1758796241483,-480.0,0.00019346,2]
[387645534,1758796241493,-480.0,0.00019346,2]
[387645535,1758796241502,-480.0,0.00019346,2]
[387645536,1758796241512,-490.14471729,0.00019346,2]
[387645537,1758796241521,-480.0,0.00019346,2]
[387645538,1758796241531,-480.0,0.00019346,2]
[387645539,1758796241541,-480.0,0.00019346,2]
[387645540,1758796241550,-480.0,0.00019346,2]
[387645541,1758796241559,-582.11728596,0.00019346,2]
[387645542,1758796241568,-480.0,0.00019346,2]
[387645543,1758796241577,-480.0,0.00019346,2]
[387645544,1758796241587,-480.0,0.00019346,2]
[387645545,1758796241596,-480.0,0.00019346,2]
[387645546,1758796241606,-480.0,0.00019346,2]
[387645547,1758796241615,-480.0,0.00019346,2]
[387645548,1758796241625,-492.12056491,0.00019346,2]
[387645549,1758796241634,-274.36901406,0.00019346,2]
[387645550,1758796241643,-480.0,0.00019346,2]
[387645551,1758796241652,-480.0,0.00019346,2]
[387645552,1758796241662,-480.0,0.00019346,2]
[387645553,1758796241672,-480.0,0.00019346,2]
[387645554,1758796241681,-480.0,0.00019346,2]
[387645555,1758796241691,-480.0,0.00019346,2]
[387645556,1758796241701,-477.15793585,0.00019346,2]
[387645557,1758796241710,-480.0,0.00019346,2]
[387645558,1758796241720,-480.0,0.00019346,2]
[387645559,1758796241730,-319.99861038,0.00019346,2]
[387645560,1758796241740,-480.0,0.00019346,2]
[387645561,1758796241751,-483.20154053,0.00019347,2]
[387645562,1758796241760,-480.0,0.00019347,2]